bitfinex-derivatives/quotes_SOLF0:USTF0_20241227
["timestamp","ask_amount","ask_price","bid_price","bid_amount"]
[1735335781893,2.6993,185.5,185.47,2.6997]
[1735335783695,2.6992,185.51,185.47,2.6997]
[1735335784189,7.0609,185.59,185.47,2.6997]
[1735335784190,1.6648,185.59,185.47,8.05632552]
[1735335784393,2.6989,185.53,185.47,8.05632552]
[1735335785391,2.6984,185.56,185.49,8.05632552]
[1735335785589,10.75472552,185.56,185.49,8.05632552]
[1735335785993,10.75472552,185.56,185.51,2.6991]
[1735335786294,10.75472552,185.56,185.52,3.14]
[1735335791192,10.75472552,185.56,185.52,5.8389]
[1735335795102,2.6983,185.57,185.52,3.14]
[1735335795599,8.05632552,185.61,185.53,8.05632552]
[1735335796494,2.6981,185.59,185.55,2.6985]
[1735335798502,2.6978,185.6,185.56,2.6983]
[1735335798702,2.6978,185.6,185.57,3.14]
[1735335799504,8.05632552,185.63,185.58,2.698]
[1735335800498,2.6977,185.61,185.58,2.698]
[1735335804102,1.6904,185.68,185.57,11.19632552]
[1735335804398,8.05632552,185.65,185.6,2.6978]
[1735335804799,2.6974,185.64,185.6,2.6978]
[1735335805202,3.84637096,185.63,185.61,2.6976]
[1735335805397,2.6974,185.64,185.62,3.14]
[1735335806201,3.84405268,185.63,185.62,3.14]
[1735335807404,2.6971,185.65,185.62,3.14]
[1735335807601,3.84303282,185.64,185.62,3.14]
[1735335808102,2.6971,185.65,185.62,3.14]
[1735335808903,3.84116853,185.64,185.62,3.14]
[1735335809205,2.6971,185.65,185.62,3.14]
[1735335811002,2.6973,185.64,185.62,3.14]
[1735335816106,2.6971,185.65,185.62,3.14]
[1735335817611,2.6971,185.65,185.62,5.8374]
[1735335817812,3.83646916,185.64,185.62,5.8374]
[1735335818108,2.697,185.66,185.62,5.8374]
[1735335819104,2.697,185.66,185.63,10.75372552]
[1735335821709,2.6968,185.67,185.63,10.75372552]
[1735335821918,3.83897194,185.66,185.65,10.75342552]
[1735335822311,8.05632552,185.71,185.65,10.75342552]
[1735335822615,3.84017272,185.7,185.65,10.75342552]
[1735335822816,2.6965,185.69,185.65,10.75342552]
[1735335823020,6.53667272,185.69,185.65,10.75342552]
[1735335823214,3.84017272,185.68,185.65,10.75342552]
[1735335823720,10.20307221,185.73,185.65,8.05632552]
[1735335823914,2.6964,185.71,185.66,2.6968]
[1735335824110,2.6964,185.71,185.67,3.14]
[1735335824314,3.84181221,185.7,185.67,5.8368]
[1735335824514,3.84181221,185.7,185.67,13.89312552]
[1735335824714,3.84181221,185.69,185.67,13.89312552]
[1735335824913,3.84181221,185.7,185.68,2.6965]
[1735335825312,3.84181221,185.71,185.68,2.6965]
[1735335825716,3.84181221,185.7,185.68,2.6965]
[1735335825909,3.84181221,185.7,185.67,11.19632552]
[1735335826119,3.84181221,185.71,185.69,10.75282552]
[1735335826718,3.84181221,185.7,185.69,10.75282552]
[1735335827121,3.84181221,185.72,185.69,10.75282552]
[1735335827420,2.696,185.73,185.69,10.75282552]
[1735335827421,3.84181221,185.71,185.69,10.75282552]
[1735335827718,3.84181221,185.7,185.69,10.75282552]
[1735335828422,3.84181221,185.72,185.7,2.6964]
[1735335828719,3.84181221,185.71,185.7,2.6964]
[1735335828910,3.84181221,185.74,185.7,2.6964]
[1735335829323,3.84181221,185.73,185.7,2.6964]
[1735335829717,3.84181221,185.72,185.7,2.6964]
[1735335830120,8.05632552,185.79,185.71,8.05632552]
[1735335830322,8.05632552,185.79,185.73,8.05632552]
[1735335830519,8.05632552,185.79,185.74,3.14]
[1735335831522,2.6954,185.77,185.74,3.14]
[1735335833925,2.6951,185.79,185.74,5.8358]
[1735335834225,8.05632552,185.76,185.73,3.14]
[1735335834423,10.75212552,185.74,185.73,3.14]
[1735335834724,2.6958,185.74,185.73,3.14]
[1735335835827,8.05632552,185.76,185.73,3.14]
[1735335836027,2.6956,185.75,185.73,3.14]
[1735335836524,8.05632552,185.77,185.73,3.14]
[1735335837328,2.6956,185.76,185.73,3.14]
[1735335837622,8.05632552,185.77,185.73,3.14]
[1735335837829,2.6958,185.75,185.73,3.14]
[1735335841233,2.6958,185.74,185.73,3.14]
[1735335841722,8.05632552,185.75,185.73,3.14]
[1735335841926,8.05632552,185.77,185.73,3.14]
[1735335842631,1.6314,185.81,185.73,3.14]
[1735335842832,9.68772552,185.81,185.74,8.05632552]
[1735335843023,2.6953,185.78,185.74,10.75202552]
[1735335843225,9.68772552,185.81,185.74,10.75202552]
[1735335843827,8.05632552,185.79,185.74,10.75202552]
[1735335844034,8.05632552,185.79,185.74,8.05632552]
[1735335844234,2.6955,185.77,185.74,8.05632552]
[1735335848537,8.05632552,185.8,185.74,8.05632552]
[1735335849032,1.6804,185.85,185.76,8.05632552]
[1735335849241,2.6949,185.81,185.76,8.05632552]
[1735335849940,2.6949,185.81,185.78,2.6952]
[1735335850141,2.6949,185.81,185.79,3.14]
[1735335850738,2.6949,185.8,185.79,3.14]
[1735335852243,2.6948,185.81,185.79,3.14]
[1735335854946,8.05632552,185.84,185.79,3.14]
[1735335854947,2.6949,185.8,185.79,3.14]
[1735335856044,1.6534,185.85,185.79,3.14]
[1735335856448,8.05632552,185.86,185.8,8.05632552]
[1735335856752,2.6945,185.83,185.8,10.75122552]
[1735335857141,7.4519048,185.87,185.8,10.75122552]
[1735335857845,8.05632552,185.88,185.82,8.05632552]
[1735335859251,2.6944,185.84,185.82,8.05632552]
[1735335859442,2.6944,185.84,185.8,10.75122552]
[1735335860652,2.6941,185.86,185.82,10.75092552]
[1735335861449,2.6941,185.86,185.83,2.6945]
[1735335861652,2.6941,185.86,185.84,3.14]
[1735335862243,2.6942,185.85,185.84,3.14]
[1735335890371,2.6942,185.85,185.84,11.19632552]
[1735335890872,2.6941,185.86,185.84,11.19632552]
[1735335897881,8.05632552,185.9,185.84,11.19632552]
[1735335898079,8.05632552,185.88,185.8,3.1649]
[1735335898276,8.05632552,185.88,185.81,3.12]
[1735335898878,2.6946,185.82,185.81,3.12]
[1735335902470,8.05632552,185.88,185.81,3.12]
[1735335902778,2.6945,185.83,185.81,3.12]
[1735335907186,2.6945,185.83,185.81,11.17632552]
[1735335907683,8.05632552,185.84,185.77,8.05632552]
[1735335907888,8.05632552,185.82,185.78,3.12]
[1735335908681,2.6951,185.79,185.78,3.12]
[1735335911287,8.05632552,185.8,185.73,9.65372552]
[1735335911493,2.6955,185.76,185.74,3.12]
[1735335911889,2.6956,185.75,185.74,3.12]
[1735335912984,2.6952,185.79,185.74,3.12]
[1735335913191,8.05632552,185.8,185.74,3.12]
[1735335913392,8.05632552,185.78,185.71,50.4]
[1735335913591,31.22157281,185.85,185.73,8.05632552]
[1735335913890,8.05632552,185.81,185.73,8.05632552]
[1735335914284,8.05632552,185.79,185.73,8.05632552]
[1735335914488,8.05632552,185.79,185.72,3.12]
[1735335914886,2.6956,185.76,185.73,10.75222552]
[1735335915087,2.6956,185.76,185.73,8.05632552]
[1735335916197,8.05632552,185.79,185.72,3.12]
[1735335916395,8.05632552,185.79,185.72,11.17632552]
[1735335916897,11.15085549,185.85,185.72,11.17632552]
[1735335917195,2.6959,185.74,185.72,11.17632552]
[1735335919088,2.6956,185.76,185.72,11.17632552]
[1735335919292,8.05632552,185.78,185.72,11.17632552]
[1735335919891,2.6958,185.75,185.72,11.17632552]
[1735335922398,8.05632552,185.78,185.72,3.12]
[1735335922597,8.05632552,185.76,185.72,3.12]
[1735335922995,2.6961,185.72,185.71,50.4]
[1735335923196,2.6961,185.72,185.71,53.52]
[1735335923600,2.6961,185.72,185.71,3.12]
[1735335924695,2.6969,185.67,185.59,50.42]
[1735335924895,2.6969,185.67,185.63,11.17632552]
[1735335926201,8.05632552,185.72,185.65,8.05632552]
[1735335926398,8.05632552,185.74,185.67,8.05632552]
[1735335926596,8.05632552,185.74,185.68,3.12]
[1735335926900,8.05632552,185.72,185.69,3.12]
[1735335927107,8.05632552,185.74,185.7,3.12]
[1735335927291,8.05632552,185.76,185.71,3.12]
[1735335928099,2.696,185.73,185.71,3.12]
[1735335934010,2.6961,185.72,185.71,3.12]
[1735335938916,8.05632552,185.72,185.6,3.2021]
[1735335939214,8.05632552,185.69,185.62,8.05632552]
[1735335939415,8.05632552,185.69,185.6,3.2021]
[1735335939608,8.05632552,185.67,185.61,8.05632552]
[1735335939807,8.05632552,185.67,185.62,3.12]
[1735335940011,2.6973,185.64,185.62,3.12]
[1735335941012,8.05632552,185.67,185.62,3.12]
[1735335941223,2.6971,185.65,185.62,3.12]
[1735335941415,8.05632552,185.69,185.62,3.12]
[1735335941611,8.05632552,185.69,185.63,8.05632552]
[1735335941819,8.05632552,185.69,185.64,2.6972]
[1735335942118,8.05632552,185.69,185.63,8.05632552]
[1735335943416,2.6968,185.67,185.63,10.75362552]
[1735335948316,2.6971,185.66,185.63,8.05632552]
[1735335949428,2.6971,185.65,185.63,8.05632552]
[1735335949625,8.05632552,185.69,185.62,3.12]
[1735335950216,2.6972,185.65,185.62,3.12]
[1735335950727,2.6972,185.65,185.62,5.8175]
[1735335952622,2.697,185.66,185.62,3.12]
[1735335952825,2.697,185.66,185.63,10.75362552]
[1735335953526,2.6968,185.68,185.64,2.6972]
[1735335954922,1.6645,185.73,185.65,8.05632552]
[1735335955128,2.6965,185.7,185.66,2.6969]
[1735335955431,2.6965,185.7,185.67,3.12]
[1735335958831,2.6961,185.72,185.68,2.6966]
[1735335959131,2.6961,185.72,185.67,11.17632552]
[1735335959335,2.6961,185.72,185.69,8.05632552]
[1735335960435,2.6961,185.72,185.69,10.75282552]
[1735335960833,2.696,185.73,185.69,8.05632552]
[1735335961731,2.6958,185.75,185.71,8.05632552]
[1735335961939,8.05632552,185.76,185.72,3.12]
[1735335962139,8.05632552,185.76,185.73,3.12]
[1735335962140,2.6958,185.74,185.73,3.12]
[1735335962437,10.75212552,185.74,185.73,3.12]
[1735335966940,2.6958,185.74,185.73,3.12]
[1735335968235,2.6958,185.74,185.68,3.1434]
[1735335968236,2.6963,185.71,185.68,1.5634]
[1735335968435,8.05632552,185.72,185.69,3.12]
[1735335968642,8.05632552,185.72,185.7,3.12]
[1735335968839,2.6962,185.71,185.7,3.12]
[1735335969253,8.05632552,185.72,185.65,8.05632552]
[1735335969452,15.19513202,185.79,185.6,33.33644902]
[1735335969453,8.05632552,185.7,185.66,3.12]
[1735335969653,8.05632552,185.7,185.67,3.12]
[1735335970054,2.6967,185.68,185.67,3.12]
[1735335972956,2.6972,185.65,185.61,10.75392552]
[1735335973153,8.05632552,185.66,185.6,3.3253]
[1735335973351,8.05632552,185.66,185.61,3.12]
[1735335974357,8.05632552,185.66,185.62,3.12]
[1735335974555,2.6975,185.63,185.6,3.3253]
[1735335974749,2.6975,185.63,185.61,3.12]
[1735335976554,2.6975,185.62,185.61,3.12]
[1735335976957,10.75382552,185.62,185.61,3.12]
[1735335977155,8.05632552,185.62,185.56,8.05632552]
[1735335977354,8.05632552,185.62,185.6,3.12]
[1735335977554,8.05632552,185.62,185.55,1.5428]
[1735335977758,8.05632552,185.62,185.56,3.12]
[1735335978260,2.698,185.6,185.56,3.12]
[1735335978958,2.6977,185.61,185.57,2.6982]
[1735335981361,8.05632552,185.62,185.56,3.12]
[1735335981561,8.05632552,185.58,185.5,1.6784]
[1735335981762,8.05632552,185.58,185.54,3.12]
[1735335982759,2.6984,185.56,185.55,3.12]
[1735335984160,2.6982,185.58,185.55,3.12]
[1735335984458,2.14733966,185.67,185.56,3.12]
[1735335984764,8.05632552,185.62,185.56,3.12]
[1735335984959,8.05632552,185.58,185.51,8.05632552]
[1735335985158,2.14733966,185.67,185.55,3.12]
[1735335985159,8.05632552,185.56,185.55,3.12]
[1735335985359,2.6988,185.53,185.5,1.6784]
[1735335985553,2.6988,185.53,185.51,3.12]
[1735335985760,2.6984,185.56,185.52,2.699]
[1735335985955,8.05632552,185.58,185.51,11.17632552]
[1735335986161,8.05632552,185.6,185.53,8.05632552]
[1735335986455,2.698,185.59,185.55,2.6985]
[1735335986759,2.698,185.59,185.56,3.12]
[1735335986958,10.75412552,185.6,185.56,3.12]
[1735335987364,8.05632552,185.6,185.56,3.12]
[1735335989268,2.6983,185.57,185.56,3.12]
[1735335990659,2.6981,185.58,185.56,3.12]
[1735335992464,2.6981,185.58,185.5,1.6784]
[1735335992668,2.6981,185.58,185.53,8.05632552]
[1735335993271,2.6981,185.58,185.54,2.6986]
[1735335995470,8.05632552,185.62,185.55,8.05632552]
[1735335995675,2.6979,185.6,185.56,5.8184]
[1735335995865,8.05632552,185.58,185.52,1.6861]
[1735335996172,8.05632552,185.58,185.53,3.12]
[1735335996779,2.6987,185.55,185.53,3.12]
[1735335997075,8.05632552,185.58,185.53,3.12]
[1735335997773,2.6987,185.55,185.53,3.12]
[1735336001168,8.05632552,185.58,185.53,3.12]
[1735336001373,8.05632552,185.6,185.53,11.17632552]
[1735336001877,2.698,185.59,185.55,2.6984]
[1735336003369,8.05632552,185.6,185.53,11.17632552]
[1735336003677,2.6982,185.58,185.54,2.6986]
[1735336006178,2.6984,185.56,185.53,2.6988]
[1735336006382,2.6984,185.56,185.54,3.12]
[1735336006782,2.6983,185.57,185.54,3.12]
[1735336008078,2.6983,185.57,185.54,5.8187]
[1735336010083,8.05632552,185.6,185.55,2.6984]
[1735336011081,2.6981,185.59,185.55,2.6984]
[1735336013786,2.6981,185.58,185.55,2.6984]
[1735336014083,8.05632552,185.6,185.54,5.8187]
[1735336014485,2.6982,185.58,185.54,5.8187]
[1735336015389,8.05632552,185.6,185.54,5.8187]
[1735336015589,8.05632552,185.58,185.54,3.12]
[1735336015984,8.05632552,185.56,185.47,53.50475538]
[1735336016185,2.6989,185.53,185.49,2.6993]
[1735336016389,8.05632552,185.54,185.48,3.12]
[1735336017084,8.05632552,185.54,185.49,8.05632552]
[1735336018487,8.05632552,185.54,185.51,2.6991]
[1735336019688,2.6986,185.55,185.51,2.6991]
[1735336024294,2.6987,185.54,185.52,3.12]
[1735336026297,8.05632552,185.58,185.52,3.12]
[1735336026795,2.6984,185.57,185.53,2.6987]
[1735336026995,2.6984,185.57,185.52,3.12]
[1735336027193,10.75452552,185.58,185.54,2.6986]
[1735336027398,10.75452552,185.58,185.52,3.12]
[1735336027792,2.6982,185.58,185.53,10.75502552]
[1735336027996,2.6982,185.58,185.53,8.05632552]
[1735336028291,8.05632552,185.6,185.56,2.6984]
[1735336028487,7.4519048,185.63,185.57,3.12]
[1735336028488,8.05632552,185.62,185.57,3.12]
[1735336028689,7.4519048,185.63,185.57,11.17632552]
[1735336028899,30.41203993,185.64,185.57,11.17632552]
[1735336028900,15.50823032,185.64,185.57,11.17632552]
[1735336029097,15.50823032,185.64,185.58,2.6981]
[1735336029793,8.05632552,185.62,185.57,3.12]
[1735336030497,8.05632552,185.58,185.47,59.34075092]
[1735336030797,8.05632552,185.56,185.49,8.05632552]
[1735336032297,2.6986,185.55,185.51,2.6991]
[1735336035801,8.05632552,185.56,185.49,8.05632552]
[1735336035999,2.6989,185.53,185.49,2.6994]
[1735336036501,8.05632552,185.54,185.48,6.277]
[1735336036798,8.05632552,185.52,185.49,3.12]
[1735336037000,8.05632552,185.52,185.47,53.1397]
[1735336037001,8.05632552,185.5,185.47,50.44]
[1735336037191,10.75572552,185.5,185.48,3.12]
[1735336037393,8.05632552,185.5,185.48,3.12]
[1735336037896,8.05632552,185.5,185.43,8.05632552]
[1735336037897,10.75562552,185.5,185.49,3.12]
[1735336039200,10.75532552,185.52,185.49,3.12]
[1735336039796,2.6992,185.51,185.49,3.12]
[1735336041998,8.05632552,185.52,185.49,3.12]
[1735336042203,8.05632552,185.56,185.49,11.17632552]
[1735336043404,10.75482552,185.56,185.52,2.6989]
[1735336046199,2.6983,185.57,185.53,2.6987]
[1735336046506,8.05632552,185.58,185.54,3.12]
[1735336046706,10.75442552,185.58,185.55,2.6985]
[1735336047198,2.6981,185.58,185.55,2.6985]
[1735336047399,7.4519048,185.63,185.55,8.05632552]
[1735336047603,8.05632552,185.62,185.55,8.05632552]
[1735336048011,2.6977,185.61,185.57,2.6982]
[1735336048217,8.05632552,185.62,185.57,2.6982]
[1735336049313,8.05632552,185.63,185.58,2.698]
[1735336049612,8.05632552,185.63,185.59,3.12]
[1735336050614,8.05632552,185.61,185.59,3.12]
[1735336051213,10.75412552,185.61,185.59,3.12]
[1735336051815,2.6978,185.6,185.59,3.12]
[1735336054209,10.75402552,185.61,185.59,3.12]
[1735336058211,2.6976,185.62,185.59,3.12]
[1735336059226,8.05632552,185.63,185.59,5.8179]
[1735336059424,2.6974,185.63,185.59,3.12]
[1735336059626,8.05632552,185.64,185.59,3.12]
[1735336060127,10.75372552,185.64,185.6,2.6977]
[1735336060322,8.05632552,185.64,185.59,3.12]
[1735336060521,8.05632552,185.62,185.59,3.12]
[1735336061026,2.6978,185.6,185.59,3.12]
[1735336066931,2.6977,185.61,185.59,3.12]
[1735336072836,8.05632552,185.62,185.59,3.12]
[1735336073033,2.698,185.61,185.59,3.12]
[1735336078337,2.6981,185.6,185.59,3.12]
[1735336078533,10.75442552,185.6,185.59,3.12]
[1735336079938,2.6983,185.58,185.53,8.05632552]
[1735336080136,8.05632552,185.58,185.54,3.12]
[1735336080432,8.05632552,185.58,185.55,3.12]
[1735336081742,8.05632552,185.6,185.55,3.12]
[1735336082541,2.6981,185.58,185.55,5.8185]
[1735336082932,2.6981,185.58,185.55,3.12]
[1735336084143,8.05632552,185.6,185.53,8.05632552]
[1735336084444,8.05632552,185.58,185.54,3.12]
[1735336084739,2.6985,185.56,185.54,3.12]
[1735336085248,8.05632552,185.6,185.54,3.12]
[1735336086242,2.6982,185.58,185.55,2.6985]
[1735336087338,2.6982,185.58,185.54,5.8186]
[1735336087539,8.05632552,185.56,185.5,3.1994]
[1735336088037,9.0344048,185.64,185.51,3.12]
[1735336088038,8.05632552,185.52,185.51,3.12]
[1735336088843,10.75532552,185.52,185.51,3.12]
[1735336089734,4.8761,185.58,185.51,3.12]
[1735336089939,2.699,185.52,185.51,3.12]
[1735336090140,8.05632552,185.53,185.47,50.48]
[1735336090347,8.05632552,185.53,185.51,3.12]
[1735336090544,2.699,185.52,185.51,3.12]
[1735336091544,8.05632552,185.53,185.47,50.48]
[1735336091744,2.6992,185.51,185.48,3.12]
[1735336097843,2.699,185.52,185.48,5.8194]
[1735336098047,2.699,185.52,185.48,3.12]
[1735336098958,2.699,185.52,185.48,5.8195]
[1735336100352,2.6993,185.5,185.48,3.12]
[1735336100955,2.6991,185.52,185.48,5.8195]
[1735336101253,4.8761,185.58,185.48,3.12]
[1735336101453,10.75482552,185.55,185.49,8.05632552]
[1735336102454,8.05632552,185.55,185.49,8.05632552]
[1735336103445,8.05632552,185.55,185.52,2.6989]
[1735336103653,8.05632552,185.55,185.53,3.12]
[1735336105854,8.05632552,185.57,185.53,3.12]
[1735336106047,8.05632552,185.57,185.53,5.8187]
[1735336106354,8.05632552,185.59,185.53,3.12]
[1735336106555,2.6983,185.57,185.53,3.12]
[1735336107058,2.6983,185.57,185.53,5.8187]
[1735336119371,8.05632552,185.59,185.53,3.12]
[1735336119572,2.6981,185.58,185.54,2.6986]
[1735336120671,8.05632552,185.57,185.53,3.12]
[1735336120872,10.75472552,185.57,185.53,5.8188]
[1735336122270,2.6984,185.57,185.53,5.8188]
[1735336122570,2.6982,185.58,185.54,2.6986]
[1735336123875,1.6344,185.64,185.54,2.6986]
[1735336123876,8.05632552,185.62,185.54,8.05632552]
[1735336124073,8.05632552,185.62,185.56,8.05632552]
[1735336124374,9.69072552,185.64,185.56,8.05632552]
[1735336124575,2.6976,185.62,185.58,2.6981]
[1735336124875,2.6976,185.62,185.59,3.12]
[1735336129883,2.6976,185.62,185.59,5.818]
[1735336131878,56.87258587,185.67,185.62,2.6975]
[1735336131879,2.6971,185.65,185.62,2.6975]
[1735336132384,2.6968,185.67,185.62,8.05632552]
[1735336133285,8.05632552,185.68,185.62,8.05632552]
[1735336133486,2.697,185.66,185.63,2.6974]
[1735336133682,2.697,185.66,185.64,3.12]
[1735336138890,2.6968,185.67,185.64,3.12]
[1735336139091,8.05632552,185.68,185.64,3.12]
[1735336139990,2.6971,185.65,185.64,3.12]
[1735336140189,8.05632552,185.66,185.6,1.6273]
[1735336140386,8.05632552,185.66,185.61,3.12]
[1735336140596,2.6974,185.63,185.62,3.12]
[1735336141090,8.05632552,185.64,185.58,2.698]
[1735336141295,2.6979,185.6,185.59,3.12]
[1735336141494,8.05632552,185.64,185.59,3.12]
[1735336141993,2.6976,185.62,185.59,3.12]
[1735336143699,8.05632552,185.64,185.6,3.12]
[1735336143897,2.6977,185.61,185.6,3.12]
[1735336145391,2.6979,185.6,185.56,2.6984]
[1735336145597,2.6979,185.6,185.57,3.12]
[1735336150603,8.05632552,185.62,185.56,2.6984]
[1735336150902,2.698,185.6,185.57,3.12]
[1735336158305,2.6977,185.61,185.57,13.87452552]
[1735336161805,2.6978,185.6,185.57,13.87452552]
[1735336164801,2.6977,185.61,185.57,13.87452552]
[1735336170210,2.6971,185.65,185.59,8.05632552]
[1735336170410,2.6971,185.65,185.61,8.05632552]
[1735336170615,2.6971,185.65,185.62,3.12]
[1735336172708,8.05632552,185.67,185.62,3.12]
[1735336173410,2.6973,185.64,185.62,3.12]
[1735336185619,8.05632552,185.63,185.55,3.2687]
[1735336185812,8.05632552,185.61,185.56,3.12]
[1735336186112,8.05632552,185.59,185.55,3.2687]
[1735336186316,8.05632552,185.59,185.56,3.12]
[1735336186516,2.6981,185.58,185.56,3.12]
[1735336187317,2.6981,185.58,185.55,3.2687]
[1735336187518,10.75442552,185.58,185.56,3.12]
[1735336187819,2.6983,185.57,185.53,47.54893379]
[1735336188019,2.6983,185.57,185.54,3.12]
[1735336188818,2.6983,185.57,185.53,47.54893379]
[1735336189019,2.6984,185.56,185.54,3.12]
[1735336189216,8.05632552,185.58,185.54,3.12]
[1735336190511,2.6983,185.57,185.54,3.12]
[1735336192516,2.6986,185.55,185.53,44.85013379]
[1735336192822,1.6567,185.62,185.49,3.358]
[1735336192823,8.05632552,185.54,185.49,3.358]
[1735336193122,2.6991,185.52,185.48,2.6996]
[1735336193417,8.05632552,185.52,185.47,9.43498381]
[1735336193613,8.05632552,185.52,185.49,3.12]
[1735336194422,2.6991,185.51,185.47,4.07835829]
[1735336194617,2.6991,185.51,185.48,3.12]
[1735336194811,8.05632552,185.52,185.48,3.12]
[1735336195012,8.05632552,185.5,185.48,3.12]
[1735336196520,2.6994,185.49,185.48,3.12]
[1735336198421,11.16367872,185.59,185.48,3.12]
[1735336198624,10.75542552,185.52,185.48,3.12]
[1735336199025,8.05632552,185.52,185.48,3.12]
[1735336199219,2.6992,185.51,185.48,3.12]
[1735336199825,8.05632552,185.5,185.48,3.12]
[1735336202433,10.75562552,185.5,185.48,3.12]
[1735336205643,8.05632552,185.5,185.44,5.9378]
[1735336205939,8.05632552,185.48,185.45,3.12]
[1735336206935,10.75602552,185.48,185.44,2.7]
[1735336207144,10.75602552,185.48,185.45,3.12]
[1735336207840,10.75602552,185.48,185.44,2.7]
[1735336208040,10.75602552,185.48,185.45,3.12]
[1735336208736,10.75602552,185.48,185.45,5.82]
[1735336210332,10.75602552,185.48,185.45,3.12]
[1735336210646,8.05632552,185.46,185.37,3.2408]
[1735336210940,8.05632552,185.46,185.42,3.12]
[1735336211137,2.7001,185.45,185.42,3.12]
[1735336213038,2.7001,185.45,185.42,5.8204]
[1735336213847,8.05632552,185.46,185.42,5.8204]
[1735336214040,10.75622552,185.46,185.42,5.8204]
[1735336214544,10.75622552,185.46,185.42,2.7004]
[1735336214740,10.75622552,185.46,185.43,3.12]
[1735336215644,2.7,185.45,185.43,3.12]
[1735336216941,2.7,185.45,185.41,50.46]
[1735336216942,10.75622552,185.46,185.44,3.12]
[1735336218343,8.05632552,185.46,185.44,3.12]
[1735336218642,2.7,185.45,185.44,3.12]
[1735336218842,8.05632552,185.46,185.43,3.12]
[1735336219044,8.05632552,185.44,185.43,3.12]
[1735336219554,10.75652552,185.44,185.43,3.12]
[1735336225256,8.05632552,185.44,185.29,50.5]
[1735336225453,8.05632552,185.38,185.33,3.12]
[1735336226461,1.5786,185.47,185.33,5.8217]
[1735336226659,8.05632552,185.39,185.33,3.12]
[1735336227053,2.7008,185.4,185.36,2.7013]
[1735336227254,8.05632552,185.39,185.36,2.7013]
[1735336227555,8.05632552,185.39,185.33,3.12]
[1735336227860,2.7013,185.36,185.33,5.8216]
[1735336229161,8.05632552,185.37,185.33,5.8216]
[1735336229457,8.05632552,185.39,185.35,2.7013]
[1735336229755,8.05632552,185.39,185.33,3.12]
[1735336230559,2.7012,185.37,185.34,3.12]
[1735336231554,2.7012,185.37,185.33,2.7017]
[1735336231758,1.5863,185.45,185.31,2.7019]
[1735336231759,8.05632552,185.35,185.31,2.7019]
[1735336231954,8.05632552,185.35,185.34,3.12]
[1735336234461,10.75782552,185.35,185.34,3.12]
[1735336236156,2.7014,185.36,185.34,3.12]
[1735336236462,8.05632552,185.35,185.16,30.01114902]
[1735336236666,8.05632552,185.28,185.22,3.12]
[1735336237065,8.05632552,185.28,185.2,8.05632552]
[1735336237066,8.05632552,185.24,185.18,1.6844]
[1735336237261,8.05632552,185.22,185.19,3.12]
[1735336237561,8.05632552,185.24,185.2,3.12]
[1735336238262,8.05632552,185.22,185.2,3.12]
[1735336239361,8.05632552,185.25,185.2,3.12]
[1735336240368,10.75922552,185.25,185.2,5.8236]
[1735336241169,10.75922552,185.25,185.21,3.12]
[1735336241767,2.7031,185.24,185.21,3.12]
[1735336242463,2.7034,185.22,185.21,3.12]
[1735336243465,2.7036,185.21,185.18,1.6844]
[1735336243663,8.05632552,185.21,185.14,8.05632552]
[1735336243865,8.05632552,185.19,185.15,3.12]
[1735336244159,2.7041,185.18,185.16,3.12]
[1735336244362,8.05632552,185.19,185.16,3.12]
[1735336244560,8.05632552,185.17,185.16,3.12]
[1735336244767,10.76042552,185.17,185.16,3.12]
[1735336245373,8.05632552,185.17,185.04,5.0048]
[1735336245573,2.7044,185.16,185.11,3.12]
[1735336246569,2.7044,185.16,185.11,5.825]